Cogmind - Beta 15 @@@ ROGUE MODE // 2025.10.04 @ 14:09:17 Player: Zon Result: Destroyed by Y-64 Sentinel with KE Penetrator Performance ------------- Evolutions (5) 2500 Regions Visited (4) 800 Robots Destroyed (25) 125 Value Destroyed (747) 747 Prototype IDs (0) 0 Alien Tech Used (0) 0 Bonus (0) 0 TOTAL SCORE: 4172 Bonus ------- None Cogmind --------- Core Integrity 0/1000 Matter 196/300 Energy 99/100 System Corruption 4% Temperature Cool (9) Movement Core (50) Location -5/Factory Parts ------- > --- POWER (2) -------- (None) > --- PROPULSION (4) --- (None) > --- UTILITY (7) ------ (None) > --- WEAPON (4) ------- (None) > --- INVENTORY (5) ---- Relay Coupler [Sentry] (3) Relay Coupler [Hunter] (3) Relay Coupler [Proto] (3) High-powered Tractor Beam Improved Plasma Cutter Peak State ------------ > --- POWER ------------ Improved Ion Engine Micro Fission Core > --- PROPULSION ------- Carbon-fiber Leg Flexi-carbon Leg Flexi-carbon Leg > --- UTILITY ---------- Improved Coolant Injector Medium Storage Unit Improved Targeting Computer Improved Target Analyzer Improved Weapon Shielding Improved Light Armor Plating Advanced Shield Generator > --- WEAPON ----------- Tesla Rifle Tesla Rifle Variable Charge Gun Gauss Rifle > --- INVENTORY -------- Advanced Heavy Siege Treads Compact Battery Relay Coupler [Sentry] Relay Coupler [Hunter] Relay Coupler [Proto] High-powered Tractor Beam High-powered Shock Rifle Gatling Laser Improved Datajack [Rating: 74] Favorites ----------- Power Ion Engine Engine Ion Engine Power Core Micro Fission Core Propulsion Flexi-carbon Leg Treads Light Treads Leg Flexi-carbon Leg Wheel Wheel Utility Small Storage Unit Device Cloaking Device Storage Small Storage Unit Processor Improved Target Analyzer Protection Makeshift Light Armor Plating Weapon EM Pulse Gun Energy Gun EM Pulse Gun Energy Cannon Advanced Plasma Cannon Ballistic Gun Battle Rifle Special Weapon Mining Laser Special Melee Weapon Improved Datajack Build | -11 -10 -10 -7 -5 ------- Run | Yrd Mat Sub Scr Fac Slots Evolved 10 | . . . . 10 Power 1 | . . . . 1 Propulsion 2 | . . . . 2 Utility 5 | . . . . 5 Weapon 2 | . . . . 2 Parts Attached 47 | 7 . 9 7 24 Power 8 | 1 . 2 1 4 Engine 6 | 1 . 2 1 2 Core 2 | . . . . 2 Reactor . | . . . . . Propulsion 8 | 2 . 1 2 3 Treads 2 | . . 1 . 1 Leg 5 | 2 . . 2 1 Wheel 1 | . . . . 1 Hover . | . . . . . Flight . | . . . . . Utility 13 | 2 . 2 2 7 Device 6 | 1 . 1 2 2 Storage 2 | 1 . . . 1 Processor 2 | . . . . 2 Hackware . | . . . . . Protection 3 | . . 1 . 2 Artifact . | . . . . . Weapon 18 | 2 . 4 2 10 Energy Gun 8 | 2 . 1 1 4 Energy Cannon 3 | . . . . 3 Ballistic Gun 4 | . . 2 . 2 Ballistic Cannon . | . . . . . Launcher . | . . . . . Special Weapon 2 | . . 1 1 . Impact Weapon . | . . . . . Slashing Weapon . | . . . . . Piercing Weapon . | . . . . . Special Melee Weapon 1 | . . . . 1 Unidentified Prototypes . | . . . . . Parts Lost 20 | . . 1 . 19 Power 4 | . . . . 4 Propulsion 6 | . . 1 . 5 Utility 5 | . . . . 5 Weapon 5 | . . . . 5 Highest Loss Streak 14 | . . 1 . 14 To Critical Strikes 1 | . . . . 1 Average Backups 7 | 4 8 6 7 7 Power 1 | 1 2 2 1 . Propulsion 2 | 2 4 2 1 1 Utility 2 | . . . 2 4 Weapon 1 | . 2 1 1 1 Tool/Special . | . . . . . Unused Backups 14 | . . 1 6 7 Power . | . . . . . Propulsion 4 | . . 1 2 1 Utility 9 | . . . 4 5 Weapon . | . . . . . Tool/Special 1 | . . . . 1 Average Slot Usage (%) 89 | . 100 89 96 71 Engine 12 | . 14 14 13 6 Treads 3 | . . 9 1 . Leg 18 | . 28 9 25 12 Device 8 | . 14 2 12 8 Storage 12 | . 14 14 14 5 Processor 1 | . . . . 6 Protection 5 | . . 11 1 7 Energy Gun 14 | . 28 17 14 8 Ballistic Gun 6 | . . 5 7 7 Special Weapon 3 | . . 4 4 . Peak Build Rating 74 | 7 7 12 24 74 Average Rating 22 | 5 7 10 19 49 On Entrance 9 | . 7 7 11 22 Naked Turns 47 | . . . . 47 Heaviest Build 52 | 15 15 20 18 52 Greatest Support 80 | 20 20 20 35 80 Greatest Overweight (x) 1 | . . 1 . 1 Average Overweight (x) . | . . . . . Largest Inventory Capacity 10 | 8 8 8 8 10 Average Capacity 8 | 7 8 8 8 9 Most Carried 10 | 8 8 8 8 10 Average Carried 7 | 5 8 6 7 8 Final Capacity 8 | 8 8 8 8 5 Final Carried 8 | 8 8 6 8 5 Class Distribution -------------------- 86% | Mutant 9% | Scavenger-Tank Dominant Class ---------------- Mutant | -10/Materials Mutant | -10/Subcaves Mutant | -7/Scraptown Scavenger-Tank | -5/Factory Resources | -11 -10 -10 -7 -5 ----------- Run | Yrd Mat Sub Scr Fac Matter Collected 958 | 270 . 129 140 419 Remotely . | . . . . . Salvage Created 965 | 142 . 192 . 631 Parts 53 | 7 . 13 . 33 Haulers Intercepted . | . . . . . Recyclers Shooed 1 | 1 . . . . Parts Field Recycled . | . . . . . Retrieved Matter . | . . . . . Parts Self-Destructed 19 | . . 19 . . Prevented . | . . . . . Kills | -11 -10 -10 -7 -5 ------- Run | Yrd Mat Sub Scr Fac Combat Hostiles Destroyed 16 | . . 6 . 10 Guns 15 | . . 6 . 9 AOE 1 | . . . . 1 Classes Destroyed 10 | 3 . 2 . 5 Worker 4 | 2 . . . 2 Builder 1 | . . . . 1 Tunneler 1 | 1 . . . . Recycler 2 | 1 . . . 1 Watcher 1 | . . . . 1 Swarmer 7 | . . 3 . 4 Sentry 1 | . . . . 1 Hunter 3 | . . . . 3 Programmer 2 | . . . . 2 Subdweller 3 | . . 3 . . Best Kill Streak 4 | 4 . 4 . 4 Combat Bots Only 4 | . . 4 . 4 Max Kills in Single Turn 2 | 1 . 1 . 2 Gunslinging . | . . . . . Exploded 1 | . . . . 1 Melee . | . . . . . Uniques/NPCs Destroyed . | . . . . . Combat | -11 -10 -10 -7 -5 -------- Run | Yrd Mat Sub Scr Fac Hostile Shots Fired 311 | . . 44 . 267 Missed 84 | . . 10 . 74 Hits 227 | . . 34 . 193 Projectile 227 | . . 34 . 193 Critical Strikes 11 | . . 1 . 10 Part Disruptions 1 | . . . . 1 Actively Blocked 1 | . . . . 1 Damage Taken 4054 | . . 545 . 3509 Core 1111 | . . 89 . 1022 Absorbed by Shields 238 | . . . . 238 Redirected to Shielding 104 | . . . . 104 Regen/Repaired (Parts) 153 | . . . 153 . Core Remaining (%) 82 | 100 . . 64 . Volleys Fired 105 | 9 . 34 . 62 Largest 4 | 2 . 2 . 4 Hottest 233 | 90 . 140 . 233 Shots Fired 258 | 18 . 62 . 178 Gun 247 | 18 . 56 . 173 Cannon 5 | . . . . 5 Launcher . | . . . . . Special 6 | . . 6 . . Kinetic 98 | . . 12 . 86 Thermal 76 | 9 . 9 . 58 Explosive . | . . . . . Electromagnetic 84 | 9 . 41 . 34 Robot Hit Streak 20 | 6 . 20 . 9 Robot Miss Streak 5 | 2 . 5 . 5 Penetration Max 1 | . . . . 1 Secondary Targets 4 | . . . . 4 Max Gunslinging Chain 1 | . . . . 1 Shots Hit Robots 144 | 11 . 35 . 98 Core Hits 55 | 5 . 11 . 39 Critical Kills . | . . . . . Critical Parts Destroyed 1 | . . . . 1 Critical Strikes 2 | 1 . . . 1 Burn 1 | 1 . . . . Destroy 1 | . . . . 1 Melee Attacks . | . . . . . Impact . | . . . . . Slashing . | . . . . . Piercing . | . . . . . Sneak Attacks . | . . . . . Combat Hostiles . | . . . . . Follow-up Attacks . | . . . . . Damage Inflicted 2617 | 146 . 478 . 1993 Guns 2414 | 146 . 478 . 1790 Cannons 131 | . . . . 131 Explosions 72 | . . . . 72 Melee . | . . . . . Ramming . | . . . . . Kinetic 872 | . . 204 . 668 Thermal 1099 | 51 . 39 . 1009 Explosive . | . . . . . Electromagnetic 646 | 95 . 235 . 316 Impact . | . . . . . Slashing . | . . . . . Piercing . | . . . . . Highest Corruption 4 | . . . . 4 Average Corruption 3 | . . . . 3 Corruption Purged . | . . . . . Corruption Blocked . | . . . . . Effects 13 | . . . . 13 Message Errors 4 | . . . . 4 Matter Fused 2 | . . . . 2 Heat Flow Errors 1 | . . . . 1 Energy Discharges 1 | . . . . 1 Parts Rejected 1 | . . . . 1 Data Loss (major) 1 | . . . . 1 Misfires 1 | . . . . 1 Alerts 1 | . . . . 1 Weapon Failures 1 | . . . . 1 Overload Shots . | . . . . . Overflow Damage . | . . . . . Projectiles . | . . . . . Explosions . | . . . . . Melee . | . . . . . Knockbacks . | . . . . . Impact . | . . . . . Kinetic . | . . . . . Secondary . | . . . . . Self-Inflicted Damage 77 | . . . . 77 Shots 1 | . . . . 1 Rammed . | . . . . . Targets Rammed . | . . . . . Kicked . | . . . . . Crushed . | . . . . . Highest Temperature 198 | 120 . . . 198 Average Temperature 86 | 58 . . . 91 Received Heat Transfer 296 | . . 60 . 236 Siege Activations . | . . . . . Martial Activations . | . . . . . Shielding Activations . | . . . . . Robots Disrupted . | . . . . . Combat Hostiles . | . . . . . Robots Corrupted . | . . . . . Combat Hostiles . | . . . . . Parts Fried 2 | . . 1 . 1 Impact Corruptions . | . . . . . Robots Melted . | . . . . . Combat Hostiles . | . . . . . Parts Melted 3 | . . . . 3 Heat Transferred 2250 | 222 . 111 . 1917 Parts Sabotaged . | . . . . . Parts Stolen . | . . . . . Parts Stripped . | . . . . . Power Chain Reactions . | . . . . . Alert | -11 -10 -10 -7 -5 ------- Run | Yrd Mat Sub Scr Fac Maximum Alert Level 1 | . . . . 1 Low Security (%) 99 | 100 100 . . 99 Level 1 . | . . . . . Level 2 . | . . . . . Level 3 . | . . . . . Level 4 . | . . . . . Level 5 . | . . . . . High Security . | . . . . . Max Security . | . . . . . Peak Influence 201 | 15 3 . . 201 Initial 3 | . 3 . . . Average 32 | 2 . . . 38 Influence Increases 603 | 20 . 70 . 513 Destroy 0b10 Robot/C 260 | . . 60 . 200 Destroy 0b10 Robot/NC 45 | 20 . . . 25 Destroy Leader 62 | . . 10 . 52 Successful Hack 30 | . . . . 30 Disable Machine 45 | . . . . 45 Destroy Structure 86 | . . . . 86 Lose Combat Pursuer 75 | . . . . 75 Influence Decreases 511 | 15 5 70 . 421 Entered New Map 2 | . 2 . . . Time Decay 329 | 15 3 70 . 241 Lost Part 180 | . . . . 180 Squads Dispatched 8 | . 1 . . 7 Investigation 2 | . 1 . . 1 Extermination 2 | . . . . 2 Reinforcement 1 | . . . . 1 Assault . | . . . . . Garrison 3 | . . . . 3 Intercept . | . . . . . Searches Triggered . | . . . . . Construction Impeded . | . . . . . Haulers Reinforced . | . . . . . Active Scanning Responses . | . . . . . Cargo Convoy Interrupts . | . . . . . Stealth | -11 -10 -10 -7 -5 --------- Run | Yrd Mat Sub Scr Fac Distress Signals . | . . . . . Communications Jammed . | . . . . . Distress Signals . | . . . . . Times Spotted 30 | . . 8 . 22 Peak Tracking Total 6 | . . 3 . 6 Tactical Retreats 5 | . . . . 5 Traps | -11 -10 -10 -7 -5 ------- Run | Yrd Mat Sub Scr Fac Traps Triggered 2 | . 1 . . 1 Indirectly . | . . . . . Trap Hack Attempts . | . . . . . Triggered . | . . . . . Disarmed . | . . . . . Reprogrammed . | . . . . . Reused . | . . . . . Traps Extracted . | . . . . . Installed . | . . . . . Triggered . | . . . . . Machines | -11 -10 -10 -7 -5 ---------- Run | Yrd Mat Sub Scr Fac Machines Disabled 3 | . . . . 3 Max in Single Turn 2 | . . . . 2 Machines Repaired . | . . . . . Machines Dismantled . | . . . . . Machines Sabotaged . | . . . . . Overloaded Fab Kills . | . . . . . Hacking | -11 -10 -10 -7 -5 --------- Run | Yrd Mat Sub Scr Fac Machines Accessed 9 | . . . 3 6 Terminals 1 | . . . . 1 Fabricators 1 | . . . . 1 Repair Stations . | . . . . . Recycling Units 3 | . . . . 3 Scanalyzers 1 | . . . . 1 Garrison Access . | . . . . . Total Hacks 41 | . . . 23 18 Successful 31 | . . . 23 8 Failed 10 | . . . . 10 Catastrophic 2 | . . . . 2 Database Lockouts . | . . . . . Manual 5 | . . . . 5 Terminals 3 | . . . . 3 Fabricators 3 | . . . . 3 Repair Stations . | . . . . . Recycling Units 8 | . . . . 8 Scanalyzers 4 | . . . . 4 Garrison Access . | . . . . . Terminal Hacks 25 | . . . 23 2 Record 25 | . . . 23 2 Fabricator Hacks 1 | . . . . 1 Build 1 | . . . . 1 Repair Station Hacks . | . . . . . Recycling Unit Hacks 2 | . . . . 2 Report Inventory 1 | . . . . 1 Retrieve Matter 1 | . . . . 1 Scanalyzer 2 | . . . . 2 Insert Component 2 | . . . . 2 Garrison Access Hacks . | . . . . . Unauthorized Hacks 1 | . . . . 1 Terminals . | . . . . . Fabricators . | . . . . . Repair Stations . | . . . . . Recycling Units 1 | . . . . 1 Mask 1 | . . . . 1 Scanalyzers . | . . . . . Garrison Access . | . . . . . Data Cores Recovered . | . . . . . Used . | . . . . . Hacking Detections 6 | . . . . 6 Full Trace Events 1 | . . . . 1 Feedback Events . | . . . . . Feedback Blocked . | . . . . . Robot Schematics Acquired . | . . . . . Robots Built . | . . . . . Authchips . | . . . . . Time . | . . . . . Total Robot Build Rating . | . . . . . Part Schematics Acquired . | . . . . . Parts Built 1 | . . . . 1 Authchips . | . . . . . Time 69 | . . . . 69 Total Part Build Rating 9 | . . . . 9 Parts Repaired . | . . . . . Time . | . . . . . Parts Recycled . | . . . . . Recycled Matter . | . . . . . Retrieved Matter . | . . . . . Retrieved Components . | . . . . . Parts Scanalyzed 1 | . . . . 1 Part Schematics Acquired . | . . . . . Parts Damaged . | . . . . . Bothacking | -11 -10 -10 -7 -5 ------------ Run | Yrd Mat Sub Scr Fac Used RIF Installer . | . . . . . Robots Hacked . | . . . . . Non-combat . | . . . . . Combat . | . . . . . Robot Hacks Applied . | . . . . . Relay Couplers Released . | . . . . . Fabnet Peak Effective % . | . . . . . Robots Rewired . | . . . . . Allies Hacked . | . . . . . Hacks Repelled . | . . . . . Allies | -11 -10 -10 -7 -5 -------- Run | Yrd Mat Sub Scr Fac Total Allies . | . . . . . Largest Group . | . . . . . Highest-Rated Group . | . . . . . Highest-Rated Ally . | . . . . . Total Orders . | . . . . . Ally Attacks . | . . . . . Total Damage . | . . . . . Kills . | . . . . . Allies Corrupted . | . . . . . Allies Melted . | . . . . . Intel | -11 -10 -10 -7 -5 ------- Run | Yrd Mat Sub Scr Fac Active Infowar (turns) 1576 | 27 84 220 996 249 Optics 172 | . . 172 . . Seismic 159 | 27 84 48 . . Cloaking 1245 | . . . 996 249 Robot Analysis Total . | . . . . . Derelict Logs Recovered 2 | . . 1 1 . Drone Launches . | . . . . . Drone Recoveries . | . . . . . Exploration | -11 -10 -10 -7 -5 ------------- Run | Yrd Mat Sub Scr Fac Turns Passed 4995 | 131 84 1347 2406 1027 Spaces Moved 3515 | 75 67 831 1926 616 Core 104 | 9 . . . 95 Treads 677 | . . 509 134 34 Legs 2731 | 66 67 322 1792 484 Wheels 3 | . . . . 3 Hover . | . . . . . Flight . | . . . . . Fastest Speed 50 | 50 120 120 120 50 Average Speed 125 | 111 120 144 122 112 Slowest Speed 190 | 120 120 190 160 190 Overloaded Moves . | . . . . . Propulsion Burnouts . | . . . . . Robots Hopped . | . . . . . Potential Cave-ins . | . . . . . Cave-ins Triggered . | . . . . . Exploration Rate (%) 28 | 4 17 47 60 14 Regions Visited 4 Branch Regions 2 Pre-discovered Areas . | . . . . . Known Exits Taken . | . . . . . Unknown Exits Taken 4 | 1 1 1 1 . Scrap Searched 4 | . . . 4 . Spaces Dug 3 | . . . . 3 Terrain Destroyed 41 | . . . . 41 Melee . | . . . . . Projectile 6 | . . . . 6 AOE 35 | . . . . 35 Terrain Rammed . | . . . . . Walls Destroyed . | . . . . . Machines Disabled . | . . . . . Actions | -11 -10 -10 -7 -5 --------- Run | Yrd Mat Sub Scr Fac Total 3855 | 102 70 898 1970 815 Wait 110 | . 4 11 6 89 Move 3511 | 74 66 830 1925 616 Hop . | . . . . . Pick Up 33 | 11 . 1 13 8 Fast Attach 30 | 5 . 3 4 18 Attach 18 | 2 . 3 4 9 Detach 2 | . . . . 2 Swap 14 | . . 8 4 2 Drop 32 | 1 . 8 14 9 Fire 105 | 9 . 34 . 62 Melee . | . . . . . Ram . | . . . . . Kick . | . . . . . Crush . | . . . . . Escape Stasis . | . . . . . Rewire . | . . . . . Trap . | . . . . . Miscellaneous . | . . . . . Route ------- -11/Scrapyard -10/Materials (discovered 2 exits: [*Min] / [*Sub]) -10/Subcaves (discovered 2 exits: [*Mat] / *Scr) -7/Scraptown -5/Factory History --------- Turn | Location | Event 9 | -11/Scrapyard | Discovered new exit (range 15) 132 | -11/Scrapyard | Entered Materials 133 | -10/Materials | Met a group of wandering Federalists 188 | -10/Materials | Discovered new exit (range 13) 205 | -10/Materials | Discovered new exit (range 8) 216 | -10/Materials | Entered Subcaves 217 | -10/Subcaves | Continued accompanying wandering Federalists (6) 313 | -10/Subcaves | Build established: Mutant 440 | -10/Subcaves | Wandering Federalist uncovered a shortcut to Scraptown 1158 | -10/Subcaves | Learned 2 Materials zone layouts 1158 | -10/Subcaves | Discovered new exit (range 12) 1563 | -10/Subcaves | Entered Scraptown 1603 | -7/Scraptown | Heard Great Nut preacher, LISTEN AND RECITE! 1972 | -7/Scraptown | Scanned Subdweller tech in exchange for log data 1975 | -7/Scraptown | Learned Research terminal intel 2008 | -7/Scraptown | Discovered new exit (range 13) 2649 | -7/Scraptown | Visited Shadow of the Wyrm 2687 | -7/Scraptown | Visited Symbiants 2738 | -7/Scraptown | Visited UFD Registry 2781 | -7/Scraptown | Visited Assassins FH 2808 | -7/Scraptown | Visited Red Mages 2874 | -7/Scraptown | Found Relay Coupler [Proto] 2912 | -7/Scraptown | Visited CR-KLE's Repair Center 2921 | -7/Scraptown | CR-KLE repaired 4 parts 3019 | -7/Scraptown | Visited Cyclists 3530 | -7/Scraptown | Visited Fellowship of the Rings 3969 | -7/Scraptown | Entered Factory 3969 | -5/Factory | Evolved 10 slots: Power x1, Propulsion x2, Utility x5, Weapon x2 4567 | -5/Factory | Build established: Scavenger-Tank 4625 | -5/Factory | Fabricated Adv. Heavy Siege Treads? 4733 | -5/Factory | Garrison activated, responded to threat 4877 | -5/Factory | Core integrity fell below 50% 4888 | -5/Factory | Lost 14 parts (3p3n3u5w) 4945 | -5/Factory | Released all parts (7) 4969 | -5/Factory | Core integrity fell below 20% 4996 | -5/Factory | Destroyed by Y-64 Sentinel with KE Penetrator Last Messages --------------- 04940_ Adv. Heavy Siege Treads destroyed. 04940_ Slug penetrates Wall. 04940_ Penetrated by Slug. 04942_ Slug penetrates Wall. 04943_ Targeting Computer melted. 04943_ H-66 Slayer destroyed. 04945_ Released Med. Storage Unit. 04945_ Released Imp. Coolant Injector. 04945_ Released Imp. Target Analyzer. 04945_ Released Gatling Laser. 04945_ Released Adv. Plasma Cannon. 04945_ Slug penetrates Wall. 04948_ Penetrated by Slug. 04951_ M-28 Smith repairs Y-64 Sentinel. 04951_ Penetrated by Slug. 04955_ U-05 Engineer builds a Door. 04961_ Acquired Wheel. 04965_ Wheel destroyed. 04977_ >RTV5SOKA: ZDIHF7FOU 04996_ Penetrated by Slug. Map ----- +----------------------------------------------------+ | | | | | | | | | | | | | | | | | | | | | | | | | | | | | | | | | | | | | ?????????????????????????????????????????????????? | | ?????????????????????????????????????????????????? | | ?????????????????????????????????????????????????? | | ?????????????????????????????????????????????????? | | ?????????????????########????????????????????????? | | ?????????????????# ###############?????????? | | ?????????????????# #?????????? | | ?????????? @ #?????????? | | ?????????? #?????????? | | ?????????? Y #?????????? | | ??????????? ##### u s #?????????? | | ?????????????????# #### #### #?????????? | | ?????????????????## #???#+#??# #?????????? | | ??????????????????# #????????# #?????????? | | ??????????????????# #????????# +?????????? | | ??????????????????# w +????????# #?????????? | | ??????????????????# #????????# #?????????? | | ??????????????????# #????????# #?????????? | | ??????????????????# #????????# #?????????? | | ??????????????????# #????????# #?????????? | | ??????????????????# #????????# #?????????? | | ??????????????????# #????????# #?????????? | | ??????????????????# #????????# #?????????? | | ??????????????????# ########## #?????????? | | ??????????????????# #?????????? | | ??????????????????# ############+#+#?????????? | | ??????????????????# #????????????????????????? | | ??????????????????# ########???????????????##? | | ??????????????????# #???????????????# | | ??????????????????# #???????????????# " | | ??????????????????# #???????????????# " | | ??????????????????# #???????????????# " | +----------------------------------------------------+ Best States ------------- Heat Dissipation 40 Coolant Potential 80 Energy Generation 24 Energy Capacity 415 Matter Stores 300 Matter Capacity 300 Sight Range 21 Terrain Scan Density 10 Cloak Strength 2 Armor Coverage 150 Weapon Shielding 66 Evasion (%) 55 Targeting Accuracy 6 Target Analysis 6 Recoil Reduction 2 Item Schematics ----------------- None Robot Schematics ------------------ None Fabricated ------------ Adv. Heavy Siege Treads | x1 | -5/Factory | Preloaded Repaired ---------- Nothing Alien Tech Used ----------------- None Achievements -------------- None Challenges ------------ None Game ------ Seed RagnarokPlasmaScanner Manual? 0 Play Time 01:33:35 Cumulative 28.9 hours Start 2025.10.03 @ 17:27:15 End 2025.10.04 @ 14:09:17 Sessions 11 Manual Loads 0 Difficulty Rogue Special Mode None Game No. 21 Rogue 21 Adventurer 0 Explorer 0 Win Type - Total 0 Types 0/0/0/0/0/0/0/0/0/0 Lore% 19 Gallery% 24 Achievement% 22 Wizard Run 0 Options --------- Layout 1 ASCII 0 Keyboard 0 Movement Mouse Keybinds 0 Fullscreen 2 Font 48/Smallcaps Map View 50x35 Zoom Use 0% Tactical HUD 1 Map Filters NONE Filters NONE Steam 1 RUN: b6a26c29-7949-4296-86a0-d041e9b74204